[Event "Ceske Budejovice IM 2022"]
[Site "Ceske Budejovice"]
[Date "2022.07.02"]
[Round "2.2"]
[White "Svanda, Ondrej"]
[Black "Civin, Tomas"]
[Result "1-0"]
[ECO "A05"]
[WhiteElo "2363"]
[BlackElo "2419"]
[Annotator "TA"]
[PlyCount "75"]
[EventDate "2022.07.01"]
[EventType "tourn"]
[EventCountry "CZE"]
[SourceTitle "playchess.com"]
[Source "ChessBase"]
[SourceQuality "1"]
[TimeControl "40/5400+30:1800+30"]

{[%evp 12,75,-11,-19,-8,-28,-16,-23,0,-25,-32,-64,-53,-54,-49,-55,-44,-45,-59,-46,-50,-45,-41,-43,-52,-59,-49,-47,-26,-31,10,7,6,0,25,-112,-116,-174,-174,-234,11,12,12,0,0,0,0,0,20,0,0,0,120,120,1146,1477,29991,29982,29982,29983,29990,29991,29991,29992,29992,29983]} 1. Nf3 {[%emt 0:00:12]} Nf6 {[%emt 0:03:14]} 2. g3 {[%emt 0:00:07]} b5 {[%emt 0:01:03]} 3. Bg2 {[%emt 0:01:36]} Bb7 {[%emt 0:00:07]} 4. d4 {[%emt 0:03:03]} e6 {[%emt 0:00:08]} 5. a4 {[%emt 0:06:46]} b4 {[%emt 0:00:35]} 6. c4 {[%emt 0:00:05]} c5 {[%emt 0:00:14]} 7. O-O {[%emt 0:04:56]} cxd4 {[%emt 0:04:50] A46: 1 d4 Nf6 2 Nf3 e6: Torre, London and Colle Systems.} 8. Qxd4 {[%emt 0:00:11]} Na6 {[%emt 0:02:38]} 9. Nbd2 {[%emt 0:05:11]} Nc5 {[%emt 0:01:50] Black has an edge.} (9... Bc5 $5 {[%cal Rc5d4]} 10. Qd3 O-O $11) 10. b3 {[%emt 0:03:10]} d6 {[%emt 0:03:59]} 11. Bb2 {[%emt 0:13:55]} Be7 {[%emt 0:05:18] [#]} 12. h3 $146 {[%emt 0:02:01]} ({Predecessor:} 12. Nh4 e5 13. Qxc5 dxc5 14. Bxb7 Qxd2 15. Bc1 Qc3 {0-1 (15) Delorme,A (2322)-Martirosyan,H (2622) Chess.com INT 2020}) 12... O-O {[%emt 0:02:47]} 13. Ne1 {[%emt 0:07:14][%cal Bf3e1,Be1d3,Bd3b4,Bb4c6][%mdl 32]} Bxg2 {[%emt 0:03:46]} (13... e5 $5 14. Qe3 Bxg2 15. Nxg2 Qc8 $11) 14. Kxg2 {[%emt 0:00:30]} e5 {[%emt 0:02:24]} 15. Qe3 {[%emt 0:01:13]} Nfd7 {[%emt 0:00:11] ...Bg5 is the strong threat.} 16. Nd3 {[%emt 0:08:09]} Bg5 {[%emt 0:18:02]} 17. f4 {[%emt 0:00:00]} exf4 {[%emt 0:00:28]} 18. gxf4 {[%emt 0:00:01]} Re8 {[%emt 0:03:49]} 19. Qf3 {[%emt 0:00:43]} Bf6 {[%emt 0:00:45]} 20. Bxf6 {[%emt 0:04:07]} Qxf6 {[%emt 0:05:09]} 21. Nxb4 {[%emt 0:04:15]} Rab8 $132 {[%emt 0:02:42][%mdl 2048] Black has counterplay} 22. Nc6 {[%emt 0:05:08][%csl LRa7,LRb8]} Rb6 {[%emt 0:02:55][%cal Ob6c6] aiming for ...Rxc6!} 23. b4 {[%emt 0:04:53]} (23. Nxa7 Qb2 24. Rad1 (24. a5 $2 Ra6 $19) 24... Nxb3 $15) (23. Rad1 $1 $11) 23... Rxc6 $1 $17 {[%emt 0:01:23]} 24. Qxc6 {[%emt 0:04:35]} (24. bxc5 $17 Rxc5 25. e4) 24... Rxe2+ $19 {[%emt 0:00:09]} 25. Kh1 {[%emt 0:01:37] [#]} (25. Rf2 $142 Rxf2+ 26. Kxf2 Nd3+ 27. Kg2 (27. Ke3 $2 Qxf4+ 28. Ke2 Qf2+ 29. Kd1 Qe1+ 30. Kc2 Nxb4+ 31. Kc3 Qxa1+ $19) 27... Nxf4+ 28. Kh2 Qxa1 29. Qxd7) 25... Rxd2 $2 {[%emt 0:02:30]} (25... Qc3 $1 $19 {[%cal Rc3h3]} 26. Qf3 Re3 27. Qa8+ Nf8) 26. bxc5 $11 {[%emt 0:00:03] Chess con chili.} Nf8 {[%emt 0:01:37] Threatens to win with ...Qc3.} 27. Rad1 {[%emt 0:05:48]} Ra2 {[%emt 0:00:59] ( -> ...Qb2)} 28. Qf3 {[%emt 0:00:49]} (28. Rxd6 {gets mated.} Qb2) 28... dxc5 {[%emt 0:00:55]} ({Resist} 28... Qb2 29. Qg3 $14) 29. f5 {[%emt 0:05:56]} h6 {[%emt 0:03:37]} 30. Rf2 {[%emt 0:03:36]} Rxa4 {[%emt 0:01:54]} 31. Qa8 {[%emt 0:02:03] Black must now prevent Rd8.} Qh4 {[%emt 0:08:28] [#]} (31... Ra1 $11 {keeps the balance.} 32. Rxa1 Qxa1+ 33. Kg2 Qc1) 32. f6 $1 $16 {[%emt 0:00:14][%cal Oa8f8] White threatens Qxf8+! and mate. White is more active.} Kh7 $2 {[%emt 0:03:37][%mdl 8192]} 33. fxg7 $18 {[%emt 0:02:21]} ({Stronger than} 33. Qxf8 Qxh3+ 34. Kg1 Qg4+ 35. Kh2 Qh5+ 36. Kg2 Qg4+ 37. Kh2 Qh5+ 38. Kg2 Qg4+ 39. Kh2 $11) 33... Kxg7 {[%emt 0:04:51] [#]} 34. Rxf7+ $3 {[%emt 0:00:01][%mdl 576] Decoy. White mates.} Kxf7 35. Rf1+ {[%mdl 64] Skewer} Ke6 {[%emt 0:02:21]} 36. Qe8+ {[%emt 0:00:02]} Kd6 {[%emt 0:00:27]} 37. Qxf8+ {[%emt 0:00:08]} Kc6 {[%emt 0:00:46]} 38. Rf6+ {[%emt 0:00:28] Never resign too early!  Weighted Error Value: White=0.16 (very precise) /Black=0.38} 1-0

[Event "Ceske Budejovice IM 2022"]
[Site "Ceske Budejovice"]
[Date "2022.07.02"]
[Round "2.3"]
[White "Bochnicka, Vladimir"]
[Black "Finek, Vaclav"]
[Result "1/2-1/2"]
[ECO "B33"]
[WhiteElo "2295"]
[BlackElo "2393"]
[Annotator "RC"]
[PlyCount "119"]
[EventDate "2022.07.01"]
[EventType "tourn"]
[EventCountry "CZE"]
[SourceTitle "playchess.com"]
[Source "ChessBase"]
[SourceQuality "1"]
[TimeControl "40/5400+30:1800+30"]

1. e4 {[%emt 0:04:10]} c5 {[%emt 0:00:05]} 2. Nf3 {[%emt 0:00:08]} Nc6 {[%emt 0:00:05]} 3. d4 {[%emt 0:00:07]} cxd4 {[%emt 0:00:05]} 4. Nxd4 {[%emt 0:00:04]} Nf6 {[%emt 0:00:05]} 5. Nc3 {[%emt 0:00:30]} g6 {[%emt 0:00:04]} 6. Be3 {[%emt 0:01:46]} Bg7 {[%emt 0:00:05]} 7. Nxc6 {[%emt 0:19:24]} bxc6 {[%emt 0:00:17]} 8. e5 {[%emt 0:01:28]} Ng8 {[%emt 0:00:05]} 9. f4 {[%emt 0:02:01]} Nh6 {[%emt 0:06:57]} 10. Qd2 {[%emt 0:06:56]} O-O {[%emt 0:09:35]} 11. O-O-O {[%emt 0:03:25]} d6 {[%emt 0:14:43]} 12. h3 {[%emt 0:16:00]} Qa5 {[%emt 0:17:19]} 13. g4 {[%emt 0:11:39]} Rb8 {[%emt 0:06:06]} 14. a3 {[%emt 0:01:35]} Ba6 {[%emt 0:20:20]} 15. Ne4 {[%emt 0:07:50]} Qxd2+ {[%emt 0:03:11]} 16. Rxd2 {[%emt 0:00:21]} Bxf1 {[%emt 0:02:11]} 17. Rxf1 {[%emt 0:00:05]} dxe5 {[%emt 0:00:17]} 18. fxe5 {[%emt 0:00:52]} Rb5 {[%emt 0:03:03]} 19. Nc5 {[%emt 0:05:53]} Re8 {[%emt 0:03:33]} 20. b3 {[%emt 0:01:16]} f5 {[%emt 0:01:50]} 21. Ne6 {[%emt 0:07:42]} fxg4 {[%emt 0:03:02]} 22. Nc7 {[%emt 0:02:06]} Rc8 {[%emt 0:00:28]} 23. Nxb5 {[%emt 0:02:17]} cxb5 {[%emt 0:00:05]} 24. hxg4 {[%emt 0:01:16]} Nxg4 {[%emt 0:00:08]} 25. Bg5 {[%emt 0:01:41]} Nxe5 {[%emt 0:00:26]} 26. Rd5 {[%emt 0:00:20]} Nc6 {[%emt 0:01:52]} 27. Rxb5 {[%emt 0:01:24]} Nd4 {[%emt 0:00:57]} 28. Rb7 {[%emt 0:00:04]} Nxc2 {[%emt 0:00:43]} 29. Kd2 {[%emt 0:01:09]} Nxa3 {[%emt 0:03:37]} 30. Bxe7 {[%emt 0:00:09]} Nc2 {[%emt 0:00:36]} 31. Bd6 {[%emt 0:00:54]} Bh6+ {[%emt 0:01:13]} 32. Kd3 {[%emt 0:00:26]} Ne3 {[%emt 0:00:12]} 33. Rh1 {[%emt 0:00:59]} Nf5 {[%emt 0:00:24]} 34. Be5 {[%emt 0:00:05]} a5 {[%emt 0:01:38]} 35. Rb8 {[%emt 0:00:31]} Rxb8 {[%emt 0:00:05]} 36. Bxb8 {[%emt 0:00:04]} Bf8 {[%emt 0:00:43]} 37. Bc7 {[%emt 0:00:19]} Bb4 {[%emt 0:00:09]} 38. Ra1 {[%emt 0:00:34]} Kf7 {[%emt 0:00:13]} 39. Bxa5 {[%emt 0:00:22]} Bd6 {[%emt 0:00:07]} 40. Re1 {[%emt 0:01:30]} h5 {[%emt 0:00:15]} 41. Bd8 {[%emt 0:18:27]} h4 {[%emt 0:07:44]} 42. Rh1 {[%emt 0:00:46]} Bg3 {[%emt 0:00:34]} 43. Ke4 {[%emt 0:06:47]} Ke6 {[%emt 0:00:49]} 44. Bg5 {[%emt 0:00:59]} Kd6 {[%emt 0:03:21]} 45. Rc1 {[%emt 0:03:41]} h3 {[%emt 0:09:09]} 46. b4 {[%emt 0:01:54]} h2 {[%emt 0:03:10]} 47. Bf4+ {[%emt 0:00:54]} Kd7 {[%emt 0:01:35]} 48. Kf3 {[%emt 0:00:29]} Bxf4 {[%emt 0:01:07]} 49. Kxf4 {[%emt 0:00:05]} Nd4 {[%emt 0:00:27]} 50. Rh1 {[%emt 0:01:08]} Nc2 {[%emt 0:01:36]} 51. b5 {[%emt 0:00:40]} Nd4 {[%emt 0:00:27]} 52. b6 {[%emt 0:00:22]} Kc6 {[%emt 0:00:09]} 53. Rxh2 {[%emt 0:00:11]} Kxb6 {[%emt 0:00:09]} 54. Ke4 {[%emt 0:00:14]} Nb5 {[%emt 0:00:50]} 55. Kd5 {[%emt 0:00:31]} Nc7+ {[%emt 0:00:21]} 56. Kc4 {[%emt 0:00:16]} Kc6 {[%emt 0:00:18]} 57. Rh6 {[%emt 0:00:06]} Kd6 {[%emt 0:00:06]} 58. Rxg6+ {[%emt 0:00:13]} Ne6 {[%emt 0:00:21]} 59. Rg8 {[%emt 0:00:32]} Ke5 {[%emt 0:00:15]} 60. Re8 {[%emt 0:01:08]} 1/2-1/2

[Event "Ceske Budejovice IM 2022"]
[Site "Ceske Budejovice"]
[Date "2022.07.02"]
[Round "2.4"]
[White "Dev, Shah"]
[Black "Lajbl, Jan"]
[Result "1/2-1/2"]
[ECO "E06"]
[WhiteElo "2292"]
[BlackElo "2212"]
[Annotator "TA"]
[PlyCount "109"]
[EventDate "2022.07.01"]
[EventType "tourn"]
[EventCountry "CZE"]
[SourceTitle "playchess.com"]
[Source "ChessBase"]
[SourceQuality "1"]
[TimeControl "40/5400+30:1800+30"]

{[%evp 18,109,9,9,6,-6,37,32,56,37,14,19,20,-14,62,51,61,46,100,34,99,91,95,85,83,22,58,64,65,68,55,61,64,67,63,25,78,81,90,77,122,32,22,17,40,16,20,0,115,116,124,119,235,142,137,121,124,102,77,0,11,-54,46,50,61,27,44,0,0,0,0,0,41,0,0,3,17,17,18,0,0,0,0,0,0,-1,0,-33,-3,-30,-4,-4,0,-28]} 1. d4 {[%emt 0:00:30]} d5 {[%emt 0:01:50]} 2. c4 {[%emt 0:00:09]} e6 {[%emt 0:00:02]} 3. Nf3 {[%emt 0:00:08]} Nf6 {[%emt 0:00:04]} 4. g3 {[%emt 0:00:09]} Be7 {[%emt 0:00:32]} 5. Bg2 {[%emt 0:00:10]} O-O {[%emt 0:01:18]} 6. O-O {[%emt 0:00:07]} dxc4 {[%emt 0:00:02]} 7. Qa4 {[%emt 0:00:09]} a6 {[%emt 0:00:06]} 8. Qxc4 {[%emt 0:00:11]} b5 {[%emt 0:00:05]} 9. Qc2 {[%emt 0:00:10]} Bb7 {[%emt 0:00:02]} 10. Bd2 {[%emt 0:00:10]} Ra7 {[%emt 0:00:22] E05: Open Catalan: 5 Nf3 Be7.} 11. Rd1 {[%emt 0:19:07]} Be4 {[%emt 0:04:16]} 12. Qc1 {[%emt 0:01:11]} b4 {[%emt 0:04:27][%cal Oc7c5] [#] White is slightly better.} 13. Bf4 $146 {[%emt 0:10:12]} ({Predecessor:} 13. Be1 Qc8 14. Nbd2 Bd5 15. Qc2 c5 16. Rac1 Rc7 17. e4 Ba8 18. e5 Nd5 19. Nc4 cxd4 20. Nxd4 {½-½ (38) Jojua,D (2588)-Quparadze,G (2493) Tbilisi 2019}) 13... Nbd7 {[%emt 0:09:12]} 14. Nbd2 {[%emt 0:11:37]} Bd5 {[%emt 0:06:59]} 15. Re1 {[%emt 0:08:08]} Qa8 {[%emt 0:00:19]} (15... c5 $11) 16. e4 $1 $14 {[%emt 0:00:25]} (16. Bxc7 $2 Rc8 17. e4 Raxc7 $19) 16... Bb7 {[%emt 0:12:58]} (16... Nxe4 $2 17. Nxe4 f5 18. Ned2 $18) 17. Ne5 $1 {[%emt 0:09:35]} (17. Qxc7 Nxe4 $1 18. Qxd7 Nxd2 19. Qxe7 Nxf3+ 20. Bxf3 Bxf3 21. Qxb4 Bh1 $15) (17. Bxc7 $2 Rc8 18. d5 Nxd5 $1 {[%mdl 512]} 19. exd5 Bxd5 $19) 17... c5 {[%emt 0:08:59]} ({Black should try} 17... a5 $14) 18. dxc5 {[%emt 0:09:53]} (18. Bg5 $1 $16 {And now Nxd7 would win.} Qd8 19. Nxd7 Qxd7 20. e5 (20. dxc5 Rc8 $14) 20... Bxg2 21. Kxg2) 18... Bxc5 {[%emt 0:04:24]} ({Better is} 18... Nxc5 $14 19. Be3 Rc8) 19. Nxd7 $16 {[%emt 0:05:34]} Nxd7 {[%emt 0:00:31]} 20. Nb3 $1 {[%emt 0:00:05]} Bb6 {[%emt 0:03:30]} 21. Be3 {[%emt 0:06:57]} (21. Qd2 $16) 21... Rc8 {[%emt 0:05:56]} 22. Qd2 {[%emt 0:00:32][%csl LRb4,LRd7]} Bxe3 {[%emt 0:00:43]} 23. Rxe3 {[%emt 0:00:10]} Nf6 {[%emt 0:04:09][%cal Rf6e4]} 24. Qxb4 {[%emt 0:01:51]} a5 {[%emt 0:01:53]} 25. Qe1 {[%emt 0:00:07] White is more active.} a4 {[%emt 0:14:26]} 26. Nd4 {[%emt 0:00:40]} Rd8 {[%emt 0:01:10]} (26... Ra6 $11) 27. Rd1 {[%emt 0:03:27]} Ra6 {[%emt 0:04:09][%cal Ba7a6,Ba6c6,Bc6c8][%mdl 32]} 28. Nc2 {[%emt 0:07:29]} Rc6 {[%emt 0:02:29] [#]} 29. Nb4 {[%emt 0:02:03]} (29. e5 $1 $16 Nd5 30. Bxd5 Rxd5 31. Rxd5 exd5 32. Rc3) 29... Rxd1 $14 {[%emt 0:02:51]} 30. Qxd1 {[%emt 0:00:05]} Rc8 {[%emt 0:02:39][%cal Rb7e4]} 31. Qe1 {[%emt 0:02:01]} Rc4 {[%emt 0:01:32]} 32. f3 {[%emt 0:00:19]} Qc8 {[%emt 0:01:59]} (32... Qa7 $11 33. a3 Bxe4) 33. Bf1 $16 {[%emt 0:00:06]} Rc1 {[%emt 0:00:48]} 34. Qd2 {[%emt 0:00:10] Strongly threatening Rd3.} a3 {[%emt 0:02:17]} (34... Qc7 $16 35. Kg2 h6) 35. bxa3 {[%emt 0:01:25] Rd3 is the strong threat.} h6 {[%emt 0:00:19]} 36. Kg2 {[%emt 0:02:01]} g5 37. h3 {[%emt 0:01:07] Against g4} Qc7 {[%emt 0:00:57]} 38. Re1 {[%emt 0:00:24]} (38. Be2 $16) 38... Rc3 $11 {[%emt 0:00:31][%cal Of6e4]} 39. Rd1 {[%emt 0:00:54] [#]} ({White should play} 39. g4 $11) 39... Kg7 {[%emt 0:00:24]} (39... Bxe4 $1 $15 40. Qd8+ (40. fxe4 $2 Qxg3+ 41. Kh1 Nxe4 $19) 40... Kg7 41. Qxc7 (41. fxe4 $2 Qxg3+ 42. Kh1 Re3 $19) 41... Bxf3+ 42. Kg1 Rxc7) 40. Bd3 $14 {[%emt 0:00:25]} Nh5 {[%emt 0:00:43]} 41. Qf2 {[%emt 0:02:27]} Rxa3 {[%emt 0:05:17]} 42. Bc2 {[%emt 0:10:34]} Rc3 {[%emt 0:06:13][%cal Oh5g3]} 43. Rd2 {[%emt 0:03:37]} Rc4 {[%emt 0:02:37]} 44. a3 {[%emt 0:02:03]} Kf8 {[%emt 0:07:33]} 45. Bd3 {[%emt 0:04:41]} Rc3 {[%emt 0:02:59]} 46. Rc2 {[%emt 0:06:28]} Rxc2 {[%emt 0:02:40]} 47. Nxc2 {[%emt 0:00:08]} Qc3 {[%emt 0:00:54]} 48. Bb5 {[%emt 0:00:53]} Nxg3 {[%emt 0:00:47][%mdl 64] Decoy} 49. Kxg3 {[%emt 0:01:05]} Qe5+ {[%emt 0:00:05]} 50. Kg2 {[%emt 0:00:14]} Qxb5 {[%emt 0:00:05]} 51. Nd4 {[%emt 0:01:22]} Qc4 {[%emt 0:02:15]} 52. Qe3 {[%emt 0:01:31] Inhibits Qc1.} Ba6 {[%emt 0:00:45]} 53. Nb3 {[%emt 0:00:20]} Qc2+ {[%emt 0:01:23]} 54. Nd2 {[%emt 0:00:29]} Bb5 {[%emt 0:01:20]} 55. Qd4 {[%emt 0:00:51] Weighted Error Value: White=0.24 (precise) /Black=0.23 (precise)} 1/2-1/2

[Event "Ceske Budejovice IM 2022"]
[Site "Ceske Budejovice"]
[Date "2022.07.02"]
[Round "2.5"]
[White "Nagy, Ladislav"]
[Black "Mirzoev, Azer"]
[Result "1/2-1/2"]
[ECO "B10"]
[WhiteElo "2209"]
[BlackElo "2424"]
[Annotator "TA"]
[PlyCount "87"]
[EventDate "2022.07.01"]
[EventType "tourn"]
[EventCountry "CZE"]
[SourceTitle "playchess.com"]
[Source "ChessBase"]
[SourceQuality "1"]
[TimeControl "40/5400+30:1800+30"]

{[%evp 9,87,33,68,60,50,61,75,51,104,105,101,102,97,40,112,135,122,76,82,82,48,16,65,62,119,113,133,124,124,103,138,137,133,137,124,110,140,139,162,124,124,108,122,115,153,97,117,97,94,113,97,117,103,10,10,10,10,10,10,10,10,10,10,10,10,10,10,10,10,10,10,10,10,10,10,10,10,10,10,10]} 1. e4 {[%emt 0:00:04]} c6 {[%emt 0:00:07]} 2. Nc3 {[%emt 0:00:20]} d5 {[%emt 0:00:09]} 3. Nf3 {[%emt 0:00:31]} a6 {[%emt 0:00:11]} 4. d4 {[%emt 0:02:44]} Bg4 {[%emt 0:00:20]} 5. h3 {[%emt 0:01:27][%cal Bh2h3,Bh3h4,Bh4h5][%mdl 32]} Bh5 {[%emt 0:04:32]} 6. exd5 {[%emt 0:02:59] B11: Caro-Kann: Two Knights Variation.} cxd5 {[%emt 0:00:04]} 7. g4 $1 {[%emt 0:01:37]} Bg6 {[%emt 0:00:04]} 8. h4 {[%emt 0:01:56] White is better.} f6 {[%emt 0:13:46]} (8... h6 $14) 9. h5 $16 {[%emt 0:15:07]} Bf7 {[%emt 0:00:04]} 10. Bf4 {[%emt 0:05:54]} e6 {[%emt 0:01:57]} 11. Qd2 {[%emt 0:10:25] [#]} ({White should try} 11. g5 $16) 11... Bb4 $146 {[%emt 0:00:43]} (11... h6 $1 $14) ({Predecessor:} 11... Bd6 12. Rh3 Nc6 13. g5 Nge7 14. O-O-O e5 15. gxf6 gxf6 16. dxe5 fxe5 17. Ng5 exf4 18. Nxf7 Kxf7 19. Nxd5 {0-1 (46) Weichhold,P (2421)-Swicarz,M (2378) Wroclaw 2017}) 12. a3 {[%emt 0:07:19]} Ba5 {[%emt 0:00:06] [#]} 13. b4 {[%emt 0:08:26] 0x0.001b6a1c568fdp-1022s more active pieces.} (13. g5 $142 $1) 13... Bc7 {[%emt 0:00:47]} 14. g5 {[%emt 0:03:10]} Nd7 {[%emt 0:01:19]} 15. h6 {[%emt 0:08:11]} g6 {[%emt 0:00:27]} (15... gxh6 $11 16. gxf6 (16. gxh6 Ne7 $15) 16... Bxf4 17. Qxf4 Qxf6 18. Qxf6 Ngxf6) 16. Bh3 $14 {[%emt 0:05:44]} f5 {[%emt 0:06:08]} (16... Nb6 $14) 17. Na4 $16 {[%emt 0:05:00]} Ne7 {[%emt 0:01:23]} 18. O-O {[%emt 0:02:06]} b6 {[%emt 0:07:04]} 19. Rac1 {[%emt 0:02:13]} Bxf4 {[%emt 0:02:07]} 20. Qxf4 {[%emt 0:00:03]} Qb8 {[%emt 0:00:12]} 21. Qe3 {[%emt 0:05:14]} O-O {[%emt 0:01:00]} 22. Nb2 {[%emt 0:01:03]} Rc8 {[%emt 0:01:10]} 23. Rfe1 {[%emt 0:03:12]} Ra7 {[%emt 0:03:56]} 24. Bg2 {[%emt 0:04:20]} a5 {[%emt 0:03:23]} 25. c4 {[%emt 0:01:37]} axb4 {[%emt 0:00:31]} 26. axb4 {[%emt 0:00:11]} dxc4 {[%emt 0:00:49]} 27. d5 {[%emt 0:01:09]} (27. Nxc4 $142 {[%cal Od4d5] Threatens to win with d5!} Nd5 28. Qd2) 27... e5 {[%emt 0:00:52]} (27... Nxd5 $2 28. Qd4 e5 29. Nxe5 Nxe5 30. Rxe5 $18 (30. Bxd5 Bxd5 31. Qxd5+ Nf7 $11)) 28. Nxc4 {[%emt 0:01:40]} ({But not} 28. Nxe5 $6 Qxe5 29. Qxe5 Nxe5 30. Rxe5 Kf8 $14) 28... Nxd5 {[%emt 0:11:57]} 29. Qd2 {[%emt 0:00:01]} Rac7 {[%emt 0:07:14]} 30. Nfxe5 {[%emt 0:01:01]} Nxe5 {[%emt 0:00:21]} 31. Nxe5 {[%emt 0:00:11]} ({Better is} 31. Rxe5 $16 Nf4 32. Qxf4 Rxc4 33. Rxc4 Rxc4 34. Qe3) 31... Rxc1 $11 {[%emt 0:00:39] The position is equal.} 32. Rxc1 {[%emt 0:00:49]} Rxc1+ {[%emt 0:00:47]} 33. Qxc1 {[%emt 0:00:02]} Qxe5 {[%emt 0:00:23]} 34. Qc8+ {[%emt 0:00:34]} Qe8 {[%emt 0:00:02]} 35. Qxe8+ {[%emt 0:00:17]} Bxe8 {[%emt 0:00:02]} 36. Bxd5+ {[%emt 0:00:09][%mdl 4096] Endgame KB-KB} Bf7 {[%emt 0:00:02]} 37. Bg2 {[%emt 0:01:33]} Kf8 {[%emt 0:10:28]} 38. f4 {[%emt 0:00:25]} Ke7 {[%emt 0:00:06]} 39. Kf2 {[%emt 0:00:07]} Kd6 {[%emt 0:00:55]} 40. Ke3 {[%emt 0:00:18]} Bd5 {[%emt 0:01:15]} 41. Bf1 {[%emt 0:30:25]} Be6 {[%emt 0:32:31]} 42. Kd4 {[%emt 0:00:17]} Bb3 {[%emt 0:00:46]} 43. Bd3 {[%emt 0:00:00]} Be6 {[%emt 0:00:00]} 44. Be2 {[%emt 0:00:00] Black escapes into a draw.  Weighted Error Value: White=0.13 (very precise) /Black=0.11 (very precise)} 1/2-1/2

[Event "Ceske Budejovice IM 2022"]
[Site "Ceske Budejovice"]
[Date "2022.07.03"]
[Round "3.1"]
[White "Mirzoev, Azer"]
[Black "Gretarsson, Helgi Ass"]
[Result "1/2-1/2"]
[ECO "A40"]
[WhiteElo "2424"]
[BlackElo "2472"]
[Annotator "TA"]
[PlyCount "85"]
[EventDate "2022.07.01"]
[EventType "tourn"]
[EventCountry "CZE"]
[SourceTitle "playchess.com"]
[Source "ChessBase"]
[SourceQuality "1"]
[TimeControl "40/5400+30:1800+30"]

{[%evp 19,85,0,10,8,22,16,25,0,0,0,0,0,18,27,36,0,10,0,7,21,13,0,0,-4,15,6,0,0,0,0,0,0,0,0,0,0,0,0,0,0,0,0,2,0,0,0,6,4,8,0,8,0,0,0,0,0,0,0,0,0,0,0,0,0,0,0,0,0]} 1. d4 {[%emt 0:00:22]} g6 {[%emt 0:00:09]} 2. Nf3 {[%emt 0:00:06]} Bg7 {[%emt 0:00:09]} 3. g3 {[%emt 0:00:04]} d5 {[%emt 0:01:49]} 4. Bg2 {[%emt 0:00:07]} c6 {[%emt 0:00:17]} 5. O-O {[%emt 0:00:39]} Nf6 {[%emt 0:00:06]} 6. Nbd2 {[%emt 0:00:10]} O-O {[%emt 0:00:23]} 7. c4 {[%emt 0:00:06]} Bf5 {[%emt 0:06:58]} 8. b3 {[%emt 0:00:18]} a5 {[%emt 0:00:23]} 9. a3 {[%emt 0:01:30]} Ne4 {[%emt 0:09:35]} 10. Bb2 {[%emt 0:01:33]} Na6 {[%emt 0:00:23]} 11. Rc1 {[%emt 0:02:14] D78: Fianchetto Grünfeld: 6 0-0 c6.} Qb6 {[%emt 0:11:20]} 12. e3 {[%emt 0:09:35] [#]} Rfd8 $146 {[%emt 0:24:42]} ({Predecessor:} 12... Bg4 13. h3 Nxd2 14. Qxd2 Be6 15. Ng5 Qxb3 16. Nxe6 fxe6 17. c5 Nc7 18. Rc3 Qb5 {½-½ (58) Ghasi,A (2475)-Olafsson,H (2508) Chess.com INT 2018}) 13. h3 {[%emt 0:06:42] White has an edge.} Nxd2 {[%emt 0:02:07]} 14. Nxd2 {[%emt 0:00:35]} Bd3 {[%emt 0:00:10]} 15. c5 {[%emt 0:19:43]} Qa7 {[%emt 0:07:56]} 16. Re1 {[%emt 0:00:08]} Nc7 {[%emt 0:00:22]} 17. Nb1 {[%emt 0:04:00]} Bxb1 {[%emt 0:02:25] The position is equal.} 18. Rxb1 {[%emt 0:00:15]} e5 {[%emt 0:00:04]} 19. dxe5 {[%emt 0:03:55]} Qxc5 {[%emt 0:00:03]} 20. Qc1 {[%emt 0:03:55]} Ne6 {[%emt 0:07:10]} 21. Rd1 {[%emt 0:01:02]} Qe7 {[%emt 0:02:11]} 22. Qc3 {[%emt 0:02:37]} Rf8 {[%emt 0:05:19]} 23. Qc2 {[%emt 0:07:52]} Nc7 {[%emt 0:00:45]} 24. e4 {[%emt 0:07:56][%cal Re4d5]} Bxe5 {[%emt 0:09:17]} (24... dxe4 {is interesting.} 25. Qxe4 Rfd8 26. h4 Rxd1+ 27. Rxd1 Rd8) 25. exd5 {[%emt 0:00:06] [#] aiming for Re1.} Bxb2 $1 {[%emt 0:00:06]} 26. Qxb2 {[%emt 0:02:36] Black must now prevent d6.} Nxd5 {[%emt 0:00:09]} 27. Bxd5 {[%emt 0:03:20]} cxd5 {[%emt 0:00:01]} 28. Rxd5 {[%emt 0:00:14]} Qe6 {[%emt 0:03:51][%csl LRd5,LRh3]} 29. Qe5 {[%emt 0:01:00]} Qxe5 {[%emt 0:03:25]} 30. Rxe5 $11 {[%emt 0:00:07][%mdl 4096] Endgame KRR-KRR} Rfc8 {[%emt 0:01:35]} 31. a4 {[%emt 0:02:28]} Rc6 {[%emt 0:00:30]} 32. Rd1 {[%emt 0:01:24]} h5 {[%emt 0:01:45]} 33. Kg2 {[%emt 0:00:37]} b6 {[%emt 0:00:40]} 34. Rd3 {[%emt 0:01:22]} Rac8 {[%emt 0:00:15]} 35. Re7 {[%emt 0:02:56]} Rf6 {[%emt 0:00:18]} 36. Re2 {[%emt 0:03:25]} Kg7 {[%emt 0:00:09]} 37. h4 {[%emt 0:00:30]} Rc5 {[%emt 0:00:29]} 38. Red2 {[%emt 0:00:36]} Rff5 {[%emt 0:00:20]} 39. Rd6 {[%emt 0:04:24]} b5 $1 {[%emt 0:00:07]} 40. axb5 {[%emt 0:00:04]} Rxb5 {[%emt 0:00:02]} 41. R6d3 {[%emt 0:30:29]} Rb4 {[%emt 0:32:37]} 42. Re2 {[%emt 0:00:22]} a4 {[%emt 0:00:11]} 43. bxa4 {[%emt 0:00:04] An even fight not without its subleties.  Weighted Error Value: White=0.03 (flawless) /Black=0.03 (flawless)} 1/2-1/2